bitfinex/quotes_ETHUSD_20250622
["timestamp","ask_amount","ask_price","bid_price","bid_amount"]
[1750574941278,30.0,2291.8,2291.7,3.49074711]
[1750574942787,30.8028,2291.8,2291.7,3.49074711]
[1750574942991,30.0,2291.7,2291.5,3.49111445]
[1750574943285,30.0,2291.7,2291.6,3.49101064]
[1750574946385,30.0,2291.7,2291.5,3.49110124]
[1750574949326,30.0,2291.7,2291.6,3.49101064]
[1750574952656,0.7703,2291.5,2290.6,0.7541]
[1750574952945,30.0,2291.1,2291.0,3.49192492]
[1750574953255,37.182,2291.1,2290.9,3.49202037]
[1750574953407,30.0,2291.0,2290.9,3.49202037]
[1750574955418,30.0,2291.0,2290.7,3.49228883]
[1750574955740,7.191,2290.9,2290.7,3.49228883]
[1750574955945,7.191,2290.9,2290.6,3.49247175]
[1750574956126,30.0,2290.8,2290.6,3.49247175]
[1750574956311,30.0,2290.8,2290.7,3.49238224]
[1750574966245,10.0,2291.0,2290.9,3.49207734]
[1750574967728,40.0,2291.0,2290.9,3.49207734]
[1750574968344,40.0,2291.0,2290.4,5.36870923]
[1750574968345,40.0,2290.9,2290.4,2.6522]
[1750574968657,40.0,2290.8,2290.7,3.49238224]
[1750574972078,47.179,2290.8,2290.7,3.49238224]
[1750574972990,47.179,2290.8,2290.2,12.37671953]
[1750574972991,0.7586,2290.7,2290.2,12.37671953]
[1750574973289,37.55626453,2290.4,2290.3,3.49299218]
[1750574974169,54.73826453,2290.4,2290.3,3.49299218]
[1750574974343,40.0,2290.3,2290.2,12.37671953]
[1750574974549,40.0,2290.3,2290.2,15.86986423]
[1750574975470,30.0,2290.3,2290.2,15.86986423]
[1750574978274,12.2719633,2290.6,2290.5,3.49268718]
[1750574978275,42.2719633,2290.6,2290.5,3.49268718]
[1750574978476,49.4509633,2290.6,2290.5,3.49268718]
[1750574978774,30.0,2290.5,2290.4,3.49277954]
[1750574980596,30.0,2290.7,2290.6,3.4925347]
[1750574980743,37.176,2290.7,2290.6,3.4925347]
[1750574981284,7.176,2290.7,2290.6,3.4925347]
[1750574981576,37.176,2290.7,2290.6,3.4925347]
[1750574984497,37.175,2290.7,2290.6,3.4925347]
[1750574985106,30.0,2290.8,2290.7,3.49238224]
[1750574985256,37.174,2290.8,2290.7,3.49238224]
[1750574985748,37.173,2290.8,2290.7,3.49238224]
[1750574987179,0.7553,2291.0,2290.9,3.49207734]
[1750574987359,40.0,2291.0,2290.9,3.49207734]
[1750574987557,47.17,2291.0,2290.9,3.49207734]
[1750574987779,40.0,2291.0,2290.9,3.49207734]
[1750574987978,47.17,2291.0,2290.9,3.49207734]
[1750574988371,40.0,2290.9,2290.4,0.8235]
[1750574988680,30.0,2290.8,2290.7,3.49238224]
[1750574989497,40.0,2290.8,2290.7,3.49238224]
[1750574990589,30.0,2290.7,2290.1,0.8235]
[1750574990746,40.7716,2290.3,2289.7,0.7551]
[1750574990948,30.0,2290.1,2289.7,0.7551]
[1750574991256,40.0,2290.3,2290.2,3.4931447]
[1750574991461,47.199,2290.3,2290.2,3.4931447]
[1750574992692,40.0,2290.3,2290.2,3.4931447]
[1750574992869,47.198,2290.3,2290.2,3.4931447]
[1750574995965,40.0,2290.2,2290.1,3.49325786]
[1750574996165,10.0,2290.2,2290.1,3.49325786]
[1750574996596,10.0,2290.1,2290.0,3.49340514]
[1750574996801,7.193,2290.1,2290.0,3.49340514]
[1750574996964,10.0,2289.9,2289.8,3.49375491]
[1750574997164,47.194,2289.9,2289.8,3.49375491]
[1750574997388,47.33060245,2289.9,2289.8,3.49375491]
[1750574998215,47.194,2289.9,2289.8,3.49375491]
[1750574998422,47.33060309,2289.9,2289.8,3.49375491]
[1750574998569,47.194,2289.9,2289.8,3.49375491]
[1750574998903,17.194,2289.9,2289.8,3.49375491]
[1750574999064,10.0,2289.9,2289.8,3.49375491]
[1750574999996,10.0,2289.9,2289.8,4.19251666]
[1750575000404,10.0,2289.9,2289.8,4.96091666]
[1750575001377,17.191,2290.1,2290.0,3.49344978]
[1750575001571,10.0,2290.1,2290.0,3.49344978]
[1750575002082,10.0,2290.1,2290.0,4.29064978]
[1750575002286,10.0,2290.1,2290.0,5.13894987]
[1750575006719,10.0,2290.1,2290.0,3.49344978]
[1750575007117,10.0,2290.1,2289.9,3.49353745]
[1750575007805,10.0,2290.1,2290.0,3.49344978]
[1750575009643,10.13659069,2290.1,2290.0,3.49344978]
[1750575009803,30.0,2289.9,2289.7,3.49376954]
[1750575010006,14.74242715,2289.9,2289.7,3.49376954]
[1750575010233,14.74242715,2289.9,2289.4,0.7732]
[1750575010943,24.74242715,2289.9,2289.8,3.49375491]
[1750575011147,54.87903118,2289.9,2289.8,3.49375491]
[1750575011448,54.74242715,2289.9,2289.8,3.49375491]
[1750575012139,54.87903426,2289.9,2289.8,3.49375491]
[1750575012340,30.0,2289.7,2289.6,3.49400077]
[1750575012500,0.13660711,2289.9,2289.8,3.49375491]
[1750575012501,37.182,2289.9,2289.8,3.49375491]
[1750575012717,37.31860916,2289.9,2289.8,3.49375491]
[1750575013121,37.31860835,2289.9,2289.8,3.49375491]
[1750575014652,37.31860974,2289.9,2289.8,3.49375491]
[1750575015157,0.13660841,2289.9,2289.8,3.49375491]
[1750575015360,40.0,2290.1,2290.0,3.49330988]
[1750575015541,10.13659876,2290.1,2290.0,3.49330988]
[1750575015738,0.13659316,2290.1,2290.0,3.49330988]
[1750575015942,7.56042715,2290.3,2290.2,3.4931447]
[1750575015943,7.181,2290.3,2290.2,3.4931447]
[1750575016135,40.13658094,2290.3,2290.2,3.4931447]
[1750575016631,40.13657839,2290.3,2290.2,3.4931447]
[1750575016831,40.13658091,2290.3,2290.2,3.4931447]
[1750575017573,47.69700806,2290.3,2290.2,3.4931447]
[1750575017943,47.6970154,2290.3,2290.2,3.4931447]
[1750575018142,47.69701384,2290.3,2290.2,3.4931447]
[1750575019034,47.69701193,2290.3,2290.2,3.4931447]
[1750575020402,47.69701017,2290.3,2290.2,3.4931447]
[1750575020601,47.69700968,2290.3,2290.2,3.4931447]
[1750575020972,47.69700903,2290.3,2290.2,3.4931447]
[1750575021172,47.69700986,2290.3,2290.2,3.4931447]
[1750575021589,47.69700983,2290.3,2290.2,3.4931447]
[1750575021966,47.69700936,2290.3,2290.2,3.4931447]
[1750575023193,40.13658221,2290.3,2290.2,4.2862447]
[1750575023611,10.13657688,2290.3,2290.2,5.06419769]
[1750575023775,10.0,2290.3,2290.2,5.06419769]
[1750575024885,7.56042715,2290.7,2290.6,3.4925347]
[1750575025086,54.86899295,2290.7,2290.6,3.4925347]
[1750575025286,40.13656456,2290.7,2290.6,3.4925347]
[1750575025669,0.13656456,2290.7,2290.6,3.4925347]
[1750575025986,10.13656456,2290.7,2290.6,3.4925347]
[1750575026299,0.13656456,2290.7,2290.6,4.27036545]
[1750575026783,37.173,2291.0,2290.9,3.49207734]
[1750575026960,47.30954613,2291.0,2290.9,3.49207734]
[1750575027370,47.30954463,2291.0,2290.9,3.49207734]
[1750575028597,47.30954553,2291.0,2290.9,3.49207734]
[1750575029200,40.0,2291.0,2290.9,3.49207734]
[1750575029403,40.13654534,2291.0,2290.9,3.49207734]
[1750575029693,40.13654581,2291.0,2290.9,3.49207734]
[1750575030315,40.0,2291.0,2290.9,3.49207734]
[1750575031425,10.0,2291.0,2290.9,4.30217734]
[1750575031604,40.0,2291.2,2291.1,3.49177251]
[1750575031799,7.56042715,2291.3,2291.2,3.49162011]
[1750575031993,44.72642715,2291.3,2291.2,3.49162011]
[1750575032499,54.72642715,2291.3,2291.2,3.49162011]
[1750575033427,10.0,2291.2,2291.0,3.49183849]
[1750575033589,10.0,2291.2,2290.9,3.4919713]
[1750575033590,50.0,2291.0,2290.9,3.49205856]
[1750575033794,40.0,2291.0,2290.9,3.49205856]
[1750575050493,40.0,2291.0,2290.9,4.24955856]
[1750575051356,10.0,2291.0,2290.9,4.24955856]
[1750575053801,10.0,2291.0,2290.9,3.49205856]
[1750575054298,40.0,2291.0,2290.9,3.49205856]
[1750575054700,47.159,2291.0,2290.9,3.49205856]
[1750575054899,51.55334887,2291.0,2290.9,3.49205856]
[1750575057210,21.55334887,2291.0,2290.9,3.49205856]
[1750575057504,51.55334887,2291.0,2290.9,3.49205856]
[1750575058081,30.0,2290.8,2290.7,3.75230084]
[1750575058407,47.159,2290.8,2290.7,3.75230084]
[1750575059176,0.8208,2290.6,2290.2,3.4931447]
[1750575059380,37.56042715,2290.4,2290.3,3.49299218]
[1750575059615,40.0,2290.3,2290.2,3.49309891]
[1750575059909,40.0,2290.2,2290.1,3.49325471]
[1750575060213,10.0,2290.1,2290.0,3.75338812]
[1750575060509,30.0,2290.0,2289.9,12.12296206]
[1750575061212,47.56042715,2290.0,2289.9,8.62938402]
[1750575061418,50.95774444,2290.0,2289.9,8.62938402]
[1750575061881,48.38122715,2290.0,2289.9,8.62938402]
[1750575063912,48.38122715,2290.0,2289.9,12.12298636]
[1750575065314,47.56042715,2290.0,2289.9,12.12298636]
[1750575066313,10.0,2290.0,2289.9,12.90078636]
[1750575066891,47.56042715,2290.0,2289.9,8.62938402]
[1750575067217,47.56042715,2290.0,2289.9,12.12298636]
[1750575072223,37.56042715,2290.0,2289.9,12.12298636]
[1750575075214,47.56042715,2290.0,2289.9,12.12298636]
[1750575076015,48.37262715,2290.0,2289.9,12.12298636]
[1750575077309,47.56042715,2290.0,2289.9,12.12298636]
[1750575080028,17.56042715,2290.0,2289.9,12.12298636]
[1750575080233,47.56042715,2290.0,2289.9,12.12298636]
[1750575085043,40.0,2290.0,2289.9,12.12298636]
[1750575085635,30.0,2290.2,2290.1,3.49329723]
[1750575085950,47.161,2290.2,2290.1,3.49329723]
[1750575089121,47.16,2290.2,2290.1,3.49329723]
[1750575091338,37.16,2290.2,2290.1,3.49329723]
[1750575100574,7.56042715,2290.5,2290.4,3.49283967]
[1750575100884,55.03083298,2290.5,2290.4,3.49283967]
[1750575102905,47.87283298,2290.5,2290.4,3.49283967]
[1750575103279,55.03083298,2290.5,2290.4,3.49283967]
[1750575106500,30.31240583,2290.5,2290.4,3.49283967]
[1750575106712,7.56042715,2290.8,2290.4,0.8318]
[1750575107008,37.157,2290.7,2290.6,3.4925347]
[1750575107190,37.56042715,2290.7,2290.6,3.4925347]
[1750575107392,44.71742715,2290.7,2290.6,3.4925347]
[1750575109206,37.56042715,2290.7,2290.6,3.4925347]
[1750575109408,44.71742715,2290.7,2290.6,3.4925347]
[1750575111729,14.71742715,2290.7,2290.6,3.4925347]
[1750575111923,44.71742715,2290.7,2290.6,3.4925347]
[1750575116432,30.0,2290.6,2290.5,3.49267948]
[1750575116731,37.56042715,2290.6,2290.5,3.49267948]
[1750575118150,44.71542715,2290.6,2290.5,3.49267948]
[1750575119848,30.0,2290.5,2290.1,0.26]
[1750575120051,37.56042715,2290.2,2290.1,3.75319045]
[1750575120248,44.71542715,2290.2,2290.1,3.49319045]
[1750575122048,14.71542715,2290.2,2290.1,3.49319045]
[1750575122350,44.71542715,2290.2,2290.1,3.49319045]
[1750575124266,37.155,2290.2,2290.1,3.49319045]
[1750575124456,37.155,2290.2,2290.0,3.49344719]
[1750575124457,17.56042715,2290.4,2290.3,3.49299218]
[1750575124763,54.71442715,2290.4,2290.3,3.49299218]
[1750575125556,54.71442715,2290.4,2290.3,4.27359218]
[1750575125557,17.154,2290.4,2290.3,4.27359218]
[1750575125767,24.71442715,2290.4,2290.3,4.27359218]
[1750575129338,24.71442715,2290.4,2290.3,5.07626445]
[1750575129542,24.71442715,2290.4,2290.3,4.27359218]
[1750575131046,17.154,2290.4,2290.3,4.27359218]
[1750575131281,10.0,2290.4,2290.3,4.27359218]
[1750575133292,10.0,2290.4,2290.3,3.49299218]
[1750575133442,10.0,2290.4,2289.6,0.26]
[1750575133443,40.0,2290.3,2289.6,0.26]
[1750575133648,7.56042715,2290.0,2289.9,12.122861]
[1750575133985,44.71342715,2290.0,2289.9,12.122861]
[1750575135349,55.48932715,2290.0,2289.9,12.12298636]
[1750575135546,47.56042715,2290.0,2289.9,12.12298636]
[1750575135849,54.71342715,2290.0,2289.9,12.12298636]
[1750575141696,24.71342715,2290.0,2289.9,12.12298636]
[1750575142388,17.56042715,2290.0,2289.9,12.12298636]
[1750575142705,47.56042715,2290.0,2289.9,12.12298636]
[1750575143499,20.08531708,2290.0,2289.9,12.12298636]
[1750575143657,50.08531708,2290.0,2289.9,8.62938402]
[1750575144368,50.85931708,2290.0,2289.9,8.62938402]
[1750575146553,20.85931708,2290.0,2289.9,8.62938402]
[1750575146760,50.85931708,2290.0,2289.9,8.62938402]
[1750575147492,54.90276686,2290.0,2289.9,8.62938402]
[1750575147698,0.7728,2289.8,2289.4,3.4942963]
[1750575147910,17.56042715,2289.5,2289.4,3.4942963]
[1750575148210,24.71342715,2289.5,2289.4,3.4942963]
[1750575148358,40.0,2289.4,2289.3,3.49447305]
[1750575148555,47.56042715,2289.4,2289.3,3.49447305]
[1750575153004,40.0,2289.4,2289.3,3.49447305]
[1750575153174,47.56042715,2289.4,2289.3,3.49447305]
[1750575153922,40.0,2289.3,2289.2,3.49456399]
[1750575154067,17.153,2289.3,2289.2,3.49456399]
[1750575157039,10.0,2289.3,2289.2,3.49456399]
[1750575157329,17.153,2289.3,2289.2,3.49456399]
[1750575157739,47.153,2289.3,2289.2,3.49456399]
[1750575158814,37.153,2289.3,2289.2,3.49456399]
[1750575160940,30.0,2289.3,2289.2,4.26356399]
[1750575161234,37.153,2289.3,2289.2,4.26356399]
[1750575162228,7.153,2289.3,2289.2,4.26356399]
[1750575163113,7.56042715,2289.4,2289.3,3.49451797]
[1750575163321,37.153,2289.5,2289.4,3.49436533]
[1750575163918,47.153,2289.5,2289.4,3.49436533]
[1750575164543,40.0,2289.4,2289.3,3.49445375]
[1750575164736,47.56042715,2289.4,2289.3,3.49445375]
[1750575165614,47.56042715,2289.4,2289.2,3.49457633]
[1750575165820,47.153,2289.3,2289.2,3.49457633]
[1750575174374,10.0,2289.2,2288.7,0.7568]
[1750575174541,10.0,2289.2,2289.1,3.49477073]
[1750575174865,17.152,2289.2,2289.1,3.49477073]
[1750575176139,24.71242715,2289.2,2289.1,3.49477073]
[1750575176653,25.50242715,2289.2,2289.0,3.49497394]
[1750575176961,17.56042715,2289.1,2289.0,3.49497394]
[1750575178264,47.56042715,2289.1,2289.0,3.49497394]
[1750575181955,47.152,2289.1,2289.0,4.27907394]
[1750575183977,40.0,2289.1,2289.0,4.27907394]
[1750575194213,40.0,2289.1,2289.0,3.49497394]
[1750575194726,47.56042715,2289.1,2289.0,3.49497394]
[1750575194935,50.4151008,2289.1,2289.0,3.49497394]
[1750575195338,30.0,2289.0,2288.8,0.26]
[1750575195489,10.0,2288.7,2288.6,3.49547615]
[1750575195690,47.56042715,2288.7,2288.6,3.49547615]
[1750575198007,54.71042715,2288.7,2288.6,3.49547615]
[1750575198408,58.85764986,2288.7,2288.2,0.26]
[1750575198609,30.0,2288.6,2288.5,3.49573956]
[1750575199702,30.0,2288.9,2288.8,3.49526733]
[1750575200435,17.15,2289.1,2289.0,3.49497597]
[1750575200618,47.15,2289.1,2289.0,3.49497597]
[1750575201046,37.15,2289.1,2289.0,3.49497597]
[1750575201352,47.15,2289.1,2289.0,3.49497597]
[1750575202256,54.71042715,2289.1,2289.0,3.49497597]
[1750575202551,55.22054351,2289.1,2289.0,3.49497597]
[1750575202761,55.98314351,2289.1,2289.0,3.49497597]
[1750575203263,10.0,2289.0,2288.8,3.49514264]
[1750575203427,54.70942715,2288.9,2288.8,3.49514264]
[1750575203633,54.70942715,2288.9,2288.4,0.8239]
[1750575203634,10.0,2288.8,2288.7,3.49538538]
[1750575204856,10.7626,2288.8,2288.7,3.49538538]
[1750575207165,30.0,2288.7,2288.5,3.49571759]
[1750575207362,37.149,2288.6,2288.5,3.49571759]
[1750575207562,44.70942715,2288.6,2288.5,3.49571759]
[1750575209151,37.149,2288.6,2288.5,3.49571759]
[1750575209874,17.149,2288.7,2288.6,3.49558682]
[1750575210037,10.0,2288.7,2288.6,3.49558682]
[1750575210734,7.56042715,2289.0,2288.9,3.49512866]
[1750575210735,47.56042715,2289.0,2288.9,3.49512866]
[1750575211151,54.70942715,2289.0,2288.9,3.49512866]
[1750575211867,24.70942715,2289.0,2288.9,3.49512866]
[1750575212172,54.70942715,2289.0,2288.9,3.49512866]
[1750575213771,24.70942715,2289.0,2288.9,3.49512866]
[1750575213951,54.70942715,2289.0,2288.9,3.49512866]
[1750575214862,47.149,2289.0,2288.9,3.49512866]
[1750575215171,40.0,2289.0,2288.9,3.49512866]
[1750575217182,47.56042715,2289.0,2288.9,3.49512866]
[1750575218850,40.0,2289.0,2288.9,3.49512866]
[1750575222088,40.0,2289.0,2288.9,4.26702866]
[1750575225179,47.56042715,2289.0,2288.9,3.49512866]
[1750575232011,50.02748629,2289.0,2288.9,3.49512866]
[1750575232179,30.0,2288.7,2288.3,3.49604509]
[1750575232380,54.70542715,2288.7,2288.6,3.49558682]
[1750575233709,55.46352715,2288.7,2288.6,3.49558682]
[1750575234217,30.0,2288.6,2288.5,3.49559041]
[1750575234420,47.56042715,2288.6,2288.5,3.49559041]
[1750575236124,54.70542715,2288.6,2288.5,3.49559041]
[1750575240114,47.145,2288.6,2288.5,3.49559041]
[1750575241628,54.70542715,2288.6,2288.5,3.49559041]
[1750575242017,54.70542715,2288.6,2288.4,3.49583447]
[1750575242230,7.9508,2288.5,2288.4,3.49583447]
[1750575243410,50.50192272,2288.5,2288.4,3.49583447]
[1750575246722,50.50192272,2288.5,2288.0,0.8222]
[1750575246930,37.56042715,2288.3,2288.2,3.49617133]
[1750575247231,54.70442715,2288.3,2288.2,3.49617133]
[1750575249127,54.70442715,2288.3,2287.9,5.61315889]
[1750575249128,30.0,2288.1,2287.9,5.61315889]
[1750575249357,47.56042715,2288.1,2288.0,3.49650349]
[1750575249692,54.70442715,2288.1,2288.0,3.49650349]
[1750575249989,47.144,2288.1,2288.0,3.49650349]
[1750575250990,40.0,2288.1,2288.0,3.49650349]
[1750575251998,0.7817,2288.6,2288.5,3.49573956]
[1750575252151,47.9267,2288.6,2288.5,3.49573956]
[1750575253098,17.145,2288.6,2288.5,3.49573956]
[1750575253250,47.145,2288.6,2288.5,3.49573956]
[1750575253962,30.0,2288.6,2288.5,3.49573956]
[1750575254157,30.0,2288.8,2288.7,3.49543408]
[1750575254357,40.0,2288.8,2288.7,3.49543408]
[1750575254559,0.7817,2289.1,2288.9,3.49512866]
[1750575254560,30.0,2289.0,2288.9,3.49512866]
[1750575255051,14.70442715,2289.2,2289.1,3.49482329]
[1750575255274,44.70442715,2289.2,2289.1,3.49482329]
[1750575255475,59.09877602,2289.2,2289.1,3.49482329]
[1750575257582,51.95477602,2289.2,2289.1,3.49482329]
[1750575257785,54.70342715,2289.2,2289.1,3.49482329]
[1750575258184,47.56042715,2289.2,2289.1,3.49482329]
[1750575261583,40.0,2289.0,2288.9,3.49502005]
[1750575261790,17.56042715,2289.0,2288.9,3.49502005]
[1750575265163,17.38676634,2289.0,2288.9,3.49502005]
[1750575265578,9.82633919,2289.0,2288.9,4.30782005]
[1750575266478,9.82633919,2289.0,2288.9,3.49502005]
[1750575268198,9.82633919,2289.0,2288.9,5.24383019]
[1750575268596,2.64936363,2289.5,2289.4,3.49436533]
[1750575268821,32.64936363,2289.5,2289.4,3.49436533]
[1750575269593,2.64936363,2289.5,2289.4,4.28016533]
[1750575271383,2.51963263,2289.5,2289.4,4.28016533]
[1750575271584,2.51963263,2289.5,2289.4,5.06883634]
[1750575271923,47.56042715,2289.8,2289.7,3.49390749]
[1750575272492,40.0,2289.8,2289.7,3.49390749]
[1750575272706,40.0,2289.8,2289.7,4.27970749]
[1750575273089,47.56042715,2289.8,2289.7,3.49390749]
[1750575273621,48.35042715,2289.8,2289.7,3.49390749]
[1750575273788,47.56042715,2289.8,2289.7,3.49390749]
[1750575277605,40.0,2289.8,2289.7,3.49390749]
[1750575281581,47.56042715,2289.8,2289.7,3.49390749]
[1750575284497,54.69742715,2289.8,2289.7,3.49390749]
[1750575291423,40.0,2289.7,2289.3,1.0206]
[1750575291625,29.09177602,2289.8,2289.4,3.49436533]
[1750575291626,37.56042715,2289.5,2289.4,3.49436533]
[1750575291828,37.136,2289.5,2289.4,3.49436533]
[1750575294834,7.136,2289.5,2289.4,3.49436533]
[1750575295031,17.56042715,2289.8,2289.7,3.49390749]
[1750575295328,54.69542715,2289.8,2289.7,3.49390749]
[1750575295632,47.56042715,2289.8,2289.7,3.49390749]
[1750575295828,30.0,2290.0,2289.9,3.49360234]
[1750575296032,47.135,2290.0,2289.9,3.49360234]
[1750575296594,40.0,2290.0,2289.9,3.49360234]
[1750575297225,38.33892715,2290.5,2290.4,3.49283967]
[1750575297399,55.47392715,2290.5,2290.4,3.49283967]
[1750575298505,48.33892715,2290.5,2290.4,3.49283967]
[1750575298710,55.47392715,2290.5,2290.4,3.49283967]
[1750575299523,10.0,2290.4,2290.3,3.49293906]
[1750575299719,44.39434887,2290.4,2290.3,3.49293906]
[1750575301033,44.39434887,2290.4,2290.3,3.49299218]
[1750575301332,10.0,2290.1,2289.9,3.49345001]
[1750575301644,54.69442715,2290.0,2289.9,3.49345001]
[1750575306008,47.134,2290.0,2289.9,3.49345001]
[1750575307941,41.73688862,2290.0,2289.9,3.49345001]
[1750575308237,48.86988862,2290.0,2289.9,3.49345001]
[1750575309807,47.133,2290.0,2289.9,3.49345001]
[1750575310902,40.0,2290.0,2289.9,3.49345001]
[1750575311103,47.132,2290.0,2289.9,3.49345001]
[1750575313839,37.132,2290.0,2289.9,3.49345001]
[1750575316843,45.49882715,2290.0,2289.9,3.49360234]
[1750575317044,49.21202715,2290.0,2289.9,3.49360234]
[1750575320749,30.0,2289.8,2289.5,3.49409366]
[1750575321047,37.56042715,2289.6,2289.5,3.49409366]
[1750575322047,47.56042715,2289.6,2289.5,3.49409366]
[1750575325651,40.0,2289.6,2289.5,3.49409366]
[1750575325858,37.131,2289.6,2289.5,3.49409366]
[1750575326147,7.131,2289.6,2289.5,4.19293825]
[1750575328251,41.848,2290.0,2289.9,3.49360234]
[1750575328426,48.979,2290.0,2289.9,3.49360234]
[1750575329449,47.13,2290.0,2289.9,3.49360234]
[1750575329652,51.52434887,2290.0,2289.9,3.49360234]
[1750575330247,21.52434887,2290.0,2289.9,3.49360234]
[1750575330451,51.52434887,2290.0,2289.9,3.49360234]
[1750575332268,40.0,2289.7,2289.5,3.49412934]
[1750575332422,47.129,2289.7,2289.6,3.49406009]
[1750575335356,40.0,2289.7,2289.6,3.49406009]
[1750575335543,10.7929,2290.1,2290.0,3.49344978]
[1750575335748,49.00119,2290.1,2290.0,3.49344978]
[1750575336061,40.0,2290.0,2289.9,3.49354969]
[1750575336938,40.0,2290.0,2289.8,3.49370254]
[1750575336939,10.0,2289.9,2289.8,3.49370254]
[1750575337258,47.129,2289.9,2289.8,3.49370254]
[1750575338762,47.129,2289.9,2289.7,3.49386757]
[1750575338964,30.0,2289.8,2289.7,3.49386757]
[1750575340968,37.128,2289.8,2289.7,3.49386757]
[1750575342463,7.128,2289.8,2289.7,3.49386757]
[1750575346470,7.128,2289.8,2289.6,3.49405121]
[1750575346471,20.0,2289.7,2289.6,3.49405121]
[1750575346774,40.0,2289.7,2289.6,3.49405121]
[1750575347162,10.0,2289.7,2289.6,3.49405121]
[1750575348073,40.0,2289.7,2289.6,3.49405121]
[1750575349078,30.0,2289.4,2289.2,3.49452528]
[1750575349238,30.0,2289.2,2289.0,3.49492799]
[1750575349443,30.0,2289.2,2289.1,3.49482329]
[1750575349778,37.127,2289.2,2289.1,3.49482329]
[1750575351180,37.127,2289.2,2288.9,9.15295924]
[1750575351181,47.903,2289.2,2288.9,8.32245924]
[1750575351476,48.33642715,2289.0,2288.9,8.32245924]
[1750575351655,55.48342715,2289.0,2288.9,8.32245924]
[1750575352373,55.9227008,2289.0,2288.9,8.32245924]
[1750575353676,46.13996846,2289.0,2288.9,8.32245924]
[1750575353843,50.53431733,2289.0,2288.9,8.32245924]
[1750575354043,50.53431733,2289.0,2288.5,3.49563587]
[1750575354044,30.0,2288.9,2288.5,3.49563587]
[1750575354273,40.0,2288.7,2288.5,3.49563587]
[1750575354479,7.147,2288.6,2288.5,3.49563587]
[1750575355382,17.147,2288.6,2288.5,3.49563587]
[1750575355584,17.147,2288.6,2288.4,3.49585378]
[1750575355961,17.147,2288.6,2288.5,3.49573956]
[1750575356672,17.147,2288.6,2288.4,3.495827]
[1750575357185,10.0,2288.5,2288.4,3.495827]
[1750575360371,17.147,2288.6,2288.5,3.49573956]
[1750575360885,47.147,2288.6,2288.5,3.49573956]
[1750575361882,40.0,2288.6,2288.5,3.49573956]
[1750575362086,47.139,2288.6,2288.5,3.49573956]
[1750575366070,10.0,2289.0,2288.9,3.49500334]
[1750575366275,47.135,2289.0,2288.9,3.49500334]
[1750575366775,40.0,2288.9,2288.8,3.49522163]
[1750575372305,30.0,2288.8,2288.7,4.30114939]
[1750575372504,37.13,2288.8,2288.7,4.30114939]
[1750575372808,7.13,2288.8,2288.7,4.30114939]
[1750575374510,17.13,2288.9,2288.8,3.49528137]
[1750575374681,47.13,2288.9,2288.8,3.49528137]
[1750575375795,40.0,2288.9,2288.8,3.49528137]
[1750575376091,47.13,2288.9,2288.8,3.49528137]
[1750575377906,40.0,2288.9,2288.8,3.49528137]
[1750575380508,10.0,2288.8,2288.4,0.26]
[1750575380712,17.13,2288.8,2288.5,4.27570259]
[1750575381311,17.13,2288.8,2288.7,3.49543408]
[1750575382010,17.13,2288.8,2288.5,0.78]
[1750575382011,47.13,2288.8,2288.5,0.78]
[1750575382190,30.0,2288.7,2288.4,3.75588252]
[1750575382387,10.0,2288.5,2288.4,3.75588252]
[1750575382589,10.0,2288.5,2288.4,0.26]
[1750575382790,10.0,2288.5,2288.2,3.49617229]
[1750575383210,10.0,2288.5,2288.4,3.49589232]
[1750575383400,7.129,2288.5,2288.4,3.49589232]
[1750575384111,0.7706,2288.6,2288.4,3.49589232]
[1750575384317,7.13,2288.5,2288.4,3.49589232]
[1750575385381,7.13,2288.5,2288.3,3.49597938]
[1750575385788,7.13,2288.5,2288.2,3.49615745]
[1750575385989,10.0,2288.4,2288.3,3.4959445]
[1750575386209,10.0,2288.4,2288.1,0.78]
[1750575386210,40.0,2288.4,2287.7,5.34288892]
[1750575386396,17.13,2288.3,2288.2,3.49618625]
[1750575386888,10.0,2288.2,2288.1,3.49628968]
[1750575387090,7.13,2288.3,2288.0,3.49645243]
[1750575387299,10.0,2288.2,2288.0,3.49645243]
[1750575387494,10.0,2288.2,2287.8,3.72214166]
[1750575387495,30.0,2287.9,2287.8,3.72227606]
[1750575387706,10.0,2287.9,2287.8,3.72227606]
[1750575388319,40.0,2287.9,2287.8,3.72227606]
[1750575389527,47.13,2287.9,2287.8,0.2254669]
[1750575389697,47.13,2287.9,2287.8,3.72227606]
[1750575390210,50.36384614,2287.9,2287.8,0.2254669]
[1750575392094,50.36384614,2287.9,2287.8,3.72227606]
[1750575392933,47.13,2287.9,2287.8,3.72227606]
[1750575395299,17.13,2287.9,2287.8,3.72227606]
[1750575395499,47.13,2287.9,2287.8,3.72227606]
[1750575396406,40.0,2287.9,2287.8,3.72227606]
[1750575396738,40.0,2288.5,2288.4,3.49589232]
[1750575396921,52.35464887,2288.5,2288.2,3.49607211]
[1750575397100,10.0,2288.3,2288.2,3.49607211]
[1750575397292,47.131,2288.3,2288.2,3.49607211]
[1750575398636,30.0,2288.2,2288.1,3.49628326]
[1750575399332,17.131,2288.3,2288.1,3.49628326]
[1750575399520,30.0,2288.2,2288.1,3.49628326]
[1750575400540,17.131,2288.3,2288.2,3.49619788]
[1750575400740,47.131,2288.3,2288.2,3.49619788]
[1750575401240,40.0,2288.3,2288.2,3.49619788]
[1750575402712,10.0,2288.3,2288.2,3.49619788]
[1750575403247,10.0,2288.5,2288.4,3.495793]
[1750575403446,47.131,2288.5,2288.4,3.495793]
[1750575404255,30.0,2288.5,2288.4,3.495793]
[1750575404543,40.0,2288.5,2288.4,4.272493]
[1750575405024,30.0,2288.5,2288.4,4.272493]
[1750575405542,2.98501732,2288.6,2288.5,3.49573956]
[1750575406262,2.98501732,2288.6,2288.5,4.53263956]
[1750575406550,0.1768,2288.9,2288.8,3.49528137]
[1750575406715,0.0268,2288.9,2288.8,3.49528137]
[1750575412862,0.0268,2288.9,2288.8,4.33766811]
[1750575413065,0.0268,2288.9,2288.8,5.14697727]
[1750575413575,0.0268,2288.9,2288.8,5.10329053]
[1750575420147,0.0268,2288.9,2288.8,4.30459053]